[Event "EYCC Girls-U10 2019"]
[Site "Bratislava"]
[Date "2019.08.04"]
[Round "3.8"]
[White "Goriachkina, Oksana"]
[Black "Mgeladze, Kesaria"]
[Result "1-0"]
[ECO "A45"]
[WhiteElo "1417"]
[BlackElo "1294"]
[Annotator "NA"]
[PlyCount "77"]
[EventDate "2019.08.02"]
[EventType "swiss"]
[EventCountry "SVK"]
[SourceTitle "playchess.com"]
[Source "ChessBase"]
[SourceQuality "1"]
[TimeControl "40/5400+30:1800+30"]

1. d4 Nf6 2. Bg5 Ne4 3. Bf4 d5 4. Nd2 Nxd2 5. Qxd2 Bf5 6. Nf3 e6 7. e3 Nc6 8. Bd3 Bxd3 9. Qxd3 Be7 10. O-O O-O 11. Ne5 Nxe5 12. Bxe5 c6 13. c4 Bd6 14. Bxd6 Qxd6 15. c5 Qc7 16. b4 a6 17. a4 e5 18. b5 e4 19. Qe2 f5 20. bxc6 bxc6 21. Rfb1 Rfb8 22. Rxb8+ Qxb8 23. Qe1 Ra7 24. Qa5 Qc8 25. Rb1 Qd7 26. Rb6 Qc8 27. Qb4 Qc7 28. a5 Kf7 29. Qa4 Rb7 30. g3 Rxb6 31. cxb6 Qb7 32. Qb4 Ke6 33. Qf8 g6 34. Qe8+ Kd6 35. Qe5+ Kd7 36. Qg7+ Kc8 37. Qf8+ Kd7 38. Qf7+ Kc8 39. Qe8# 1-0

[Event "EYCC Girls-U10 2019"]
[Site "Bratislava"]
[Date "2019.08.04"]
[Round "3.9"]
[White "Shukhman, Anna"]
[Black "Mence, Eline"]
[Result "1-0"]
[ECO "B01"]
[WhiteElo "1806"]
[BlackElo "1162"]
[Annotator "NA"]
[PlyCount "65"]
[EventDate "2019.08.02"]
[EventType "swiss"]
[EventCountry "SVK"]
[SourceTitle "playchess.com"]
[Source "ChessBase"]
[SourceQuality "1"]
[TimeControl "40/5400+30:1800+30"]

1. e4 {[%emt 0:00:00]} d5 {[%emt 0:00:00]} 2. exd5 {[%emt 0:00:00]} Nf6 {[%emt 0:00:00]} 3. d4 {[%emt 0:00:00]} Bg4 {[%emt 0:00:00]} 4. f3 {[%emt 0:00:00]} Bf5 {[%emt 0:00:12]} 5. g4 {[%emt 0:00:14]} Bg6 {[%emt 0:01:29]} 6. c4 {[%emt 0:00:21]} c6 {[%emt 0:03:46]} 7. Nc3 {[%emt 0:00:20]} cxd5 {[%emt 0:01:29]} 8. g5 {[%emt 0:01:20]} Nfd7 {[%emt 0:02:02]} 9. Nxd5 {[%emt 0:01:36]} Nb6 {[%emt 0:02:10]} 10. Nf4 {[%emt 0:12:22]} e6 {[%emt 0:08:09]} 11. Nxg6 {[%emt 0:04:42]} hxg6 {[%emt 0:01:37]} 12. a3 {[%emt 0:01:45]} Nc6 {[%emt 0:01:26]} 13. Be3 {[%emt 0:01:33]} Be7 {[%emt 0:01:58]} 14. Qd2 {[%emt 0:02:08]} Qd7 {[%emt 0:01:22]} 15. O-O-O {[%emt 0:03:38]} O-O-O {[%emt 0:00:55]} 16. Kb1 {[%emt 0:07:06]} Kb8 {[%emt 0:03:05]} 17. f4 {[%emt 0:08:20]} f5 {[%emt 0:07:40]} 18. Nf3 {[%emt 0:01:47]} Qc7 {[%emt 0:02:11]} 19. Qc2 {[%emt 0:02:17]} Rd7 {[%emt 0:07:31]} 20. Be2 {[%emt 0:04:20]} Rhd8 {[%emt 0:07:25]} 21. Rd2 {[%emt 0:01:44]} Ka8 {[%emt 0:09:43]} 22. Rhd1 {[%emt 0:05:11]} Kb8 23. Bf1 {[%emt 0:03:26]} Ka8 {[%emt 0:08:57]} 24. Rc1 {[%emt 0:02:46]} Qb8 {[%emt 0:03:35]} 25. Qd1 {[%emt 0:02:31]} Bf8 {[%emt 0:06:43]} 26. Bg2 {[%emt 0:03:47]} a5 {[%emt 0:00:48]} 27. d5 {[%emt 0:02:28]} exd5 {[%emt 0:03:45]} 28. Bxb6 {[%emt 0:00:25]} Re8 {[%emt 0:02:32]} 29. cxd5 {[%emt 0:00:53]} Na7 {[%emt 0:02:05]} 30. Qa4 {[%emt 0:00:35]} Rde7 {[%emt 0:00:56]} 31. Qxa5 {[%emt 0:00:26]} Re2 {[%emt 0:01:07]} 32. Rxe2 {[%emt 0:00:18]} Rxe2 {[%emt 0:00:10]} 33. Rc8 {[%emt 0:01:03]} 1-0

[Event "EYCC Girls-U10 2019"]
[Site "Bratislava"]
[Date "2019.08.04"]
[Round "3.10"]
[White "Sidorenja, Milena"]
[Black "Alexandri, Vasiliki"]
[Result "1-0"]
[ECO "B02"]
[WhiteElo "1573"]
[BlackElo "1068"]
[Annotator "NA"]
[PlyCount "123"]
[EventDate "2019.08.02"]
[EventType "swiss"]
[EventCountry "SVK"]
[SourceTitle "playchess.com"]
[Source "ChessBase"]
[SourceQuality "1"]
[TimeControl "40/5400+30:1800+30"]

1. e4 {[%emt 0:00:00]} Nf6 {[%emt 0:00:00]} 2. e5 {[%emt 0:00:00]} Nd5 {[%emt 0:00:00]} 3. Bc4 {[%emt 0:01:06]} Nb6 {[%emt 0:01:52]} 4. Bb3 {[%emt 0:00:10]} e6 {[%emt 0:00:32]} 5. Nf3 {[%emt 0:00:22]} Nc6 {[%emt 0:00:52]} 6. d4 {[%emt 0:00:38]} d6 {[%emt 0:01:51]} 7. O-O {[%emt 0:02:58]} dxe5 {[%emt 0:04:02]} 8. dxe5 {[%emt 0:00:40]} Qxd1 {[%emt 0:05:31]} 9. Rxd1 {[%emt 0:00:07]} Nd7 {[%emt 0:01:11]} 10. Bf4 {[%emt 0:00:42]} h6 {[%emt 0:02:13]} 11. Nc3 {[%emt 0:00:47]} g5 {[%emt 0:05:42]} 12. Bg3 {[%emt 0:01:18]} g4 {[%emt 0:01:35]} 13. Nb5 {[%emt 0:06:49]} Kd8 {[%emt 0:25:59]} 14. Nfd4 {[%emt 0:00:51]} Nxd4 {[%emt 0:06:53]} 15. Rxd4 {[%emt 0:00:10]} a6 {[%emt 0:02:15]} 16. Bh4+ {[%emt 0:01:08]} Be7 {[%emt 0:01:04]} 17. Bxe7+ {[%emt 0:00:43]} Kxe7 {[%emt 0:00:11]} 18. Nxc7 {[%emt 0:00:24]} Ra7 {[%emt 0:01:22]} 19. Rxg4 {[%emt 0:12:28]} Nxe5 {[%emt 0:02:46]} 20. Re4 {[%emt 0:00:11]} Nc6 {[%emt 0:03:01]} 21. Nd5+ {[%emt 0:00:23]} Kd6 {[%emt 0:01:22]} 22. Nf4 {[%emt 0:02:37]} b5 {[%emt 0:03:09]} 23. Rd1+ {[%emt 0:01:21]} Kc7 {[%emt 0:00:35]} 24. Nh5 {[%emt 0:03:03]} Na5 {[%emt 0:01:45]} 25. Nf6 {[%emt 0:01:02]} Nxb3 {[%emt 0:02:14]} 26. cxb3 {[%emt 0:00:34]} Kb8 {[%emt 0:02:27]} 27. Red4 {[%emt 0:00:52]} Rc7 {[%emt 0:01:07]} 28. R4d2 {[%emt 0:01:03]} h5 {[%emt 0:01:46]} 29. h3 {[%emt 0:00:44]} Rh6 {[%emt 0:01:11]} 30. Ne8 {[%emt 0:01:49]} Rc5 {[%emt 0:02:53]} 31. Nd6 {[%emt 0:02:11]} Rh7 {[%emt 0:02:42]} 32. b4 {[%emt 0:01:38]} Rc6 {[%emt 0:00:49]} 33. a3 {[%emt 0:00:39]} Rc7 {[%emt 0:01:13]} 34. Ne8 {[%emt 0:01:36]} Rc4 {[%emt 0:04:01]} 35. Rd8 {[%emt 0:02:34]} Rh8 {[%emt 0:01:56]} 36. R1d7 {[%emt 0:03:11]} Rf8 {[%emt 0:04:31]} 37. b3 {[%emt 0:05:42]} Rc1+ {[%emt 0:01:02]} 38. Kh2 {[%emt 0:00:56]} Rc3 {[%emt 0:00:24]} 39. Nd6 {[%emt 0:00:00]} Rxd8 {[%emt 0:00:00]} 40. Rxd8 {[%emt 0:00:00]} Rc7 {[%emt 0:00:00]} 41. Rh8 {[%emt 0:01:48]} Rc6 {[%emt 0:03:46]} 42. Nxf7 {[%emt 0:05:54]} Kc7 {[%emt 0:02:51]} 43. Rxh5 {[%emt 0:00:33]} Rc3 {[%emt 0:00:30]} 44. Rc5+ {[%emt 0:00:08]} Rxc5 {[%emt 0:00:22]} 45. bxc5 {[%emt 0:00:06]} Kc6 {[%emt 0:00:26]} 46. b4 {[%emt 0:00:05]} Kd5 {[%emt 0:00:59]} 47. Nd6 {[%emt 0:00:16]} e5 {[%emt 0:00:32]} 48. Nxc8 {[%emt 0:00:27]} Kc6 {[%emt 0:00:19]} 49. Nd6 {[%emt 0:00:08]} Kd5 {[%emt 0:00:30]} 50. g4 {[%emt 0:00:10]} e4 {[%emt 0:00:13]} 51. h4 {[%emt 0:00:11]} Kd4 {[%emt 0:00:16]} 52. g5 {[%emt 0:00:09]} e3 {[%emt 0:00:18]} 53. fxe3+ {[%emt 0:00:07]} Kxe3 {[%emt 0:00:10]} 54. g6 {[%emt 0:00:05]} Kd3 {[%emt 0:00:44]} 55. g7 {[%emt 0:00:10]} Kd4 {[%emt 0:00:57]} 56. g8=Q {[%emt 0:00:09]} Kc3 {[%emt 0:00:40]} 57. Qd5 {[%emt 0:00:09]} Kb2 {[%emt 0:00:12]} 58. Qd3 {[%emt 0:00:08]} Ka1 {[%emt 0:00:41]} 59. Qd2 {[%emt 0:00:09]} Kb1 {[%emt 0:00:50]} 60. Ne4 {[%emt 0:00:18]} Ka1 {[%emt 0:00:34]} 61. Nc3 {[%emt 0:00:10]} a5 {[%emt 0:00:45]} 62. Qa2# {[%emt 0:00:06]} 1-0

[Event "EYCC Girls-U10 2019"]
[Site "Bratislava"]
[Date "2019.08.04"]
[Round "3.11"]
[White "Liashkevich, Lizaveta"]
[Black "Horvathova, Hana"]
[Result "1-0"]
[ECO "D35"]
[WhiteElo "1406"]
[BlackElo "1271"]
[Annotator "NA"]
[PlyCount "94"]
[EventDate "2019.08.02"]
[EventType "swiss"]
[EventCountry "SVK"]
[SourceTitle "playchess.com"]
[Source "ChessBase"]
[SourceQuality "1"]
[TimeControl "40/5400+30:1800+30"]

1. d4 {[%emt 0:00:00]} d5 {[%emt 0:00:00]} 2. c4 {[%emt 0:00:00]} e6 {[%emt 0:00:00]} 3. cxd5 {[%emt 0:00:00]} exd5 {[%emt 0:00:08]} 4. Nc3 {[%emt 0:00:02]} Nf6 {[%emt 0:00:17]} 5. Bg5 {[%emt 0:00:11]} Be7 {[%emt 0:00:24]} 6. e3 {[%emt 0:00:11]} c6 {[%emt 0:00:39]} 7. Bd3 {[%emt 0:00:17]} Nbd7 {[%emt 0:00:53]} 8. Nf3 {[%emt 0:01:28]} O-O {[%emt 0:01:25]} 9. O-O {[%emt 0:00:54]} Re8 {[%emt 0:00:33]} 10. Rc1 {[%emt 0:00:24]} Nf8 {[%emt 0:00:53]} 11. h3 {[%emt 0:01:22]} g6 {[%emt 0:05:58]} 12. a3 {[%emt 0:04:04]} a5 {[%emt 0:01:57]} 13. Qc2 {[%emt 0:03:59]} Ne6 {[%emt 0:00:49]} 14. Bh4 {[%emt 0:00:16]} Ng7 {[%emt 0:01:37]} 15. Rb1 {[%emt 0:04:06]} Bf5 {[%emt 0:01:45]} 16. b4 {[%emt 0:07:39]} Bxd3 {[%emt 0:00:38]} 17. Qxd3 {[%emt 0:00:06]} axb4 {[%emt 0:01:45]} 18. axb4 {[%emt 0:01:07]} Nf5 {[%emt 0:01:07]} 19. Bxf6 {[%emt 0:00:44]} Bxf6 {[%emt 0:00:09]} 20. b5 {[%emt 0:02:27]} Nd6 {[%emt 0:02:12]} 21. bxc6 {[%emt 0:00:38]} bxc6 {[%emt 0:00:24]} 22. Rb3 {[%emt 0:03:05]} Rb8 {[%emt 0:01:11]} 23. Rxb8 {[%emt 0:00:23]} Qxb8 {[%emt 0:00:29]} 24. Rb1 {[%emt 0:00:37]} Qc7 {[%emt 0:03:59]} 25. Qa6 {[%emt 0:08:02]} Qc8 {[%emt 0:00:37]} 26. Qxc8 {[%emt 0:00:28]} Rxc8 {[%emt 0:00:10]} 27. Rb6 {[%emt 0:01:43]} Bg7 {[%emt 0:03:06]} 28. Nxd5 {[%emt 0:05:17]} cxd5 {[%emt 0:04:35]} 29. Rxd6 {[%emt 0:00:05]} Rc1+ {[%emt 0:00:38]} 30. Kh2 {[%emt 0:00:11]} Rf1 {[%emt 0:00:14]} 31. Kg3 {[%emt 0:01:54]} Rd1 {[%emt 0:02:27]} 32. Rxd5 {[%emt 0:00:32]} h6 {[%emt 0:01:20]} 33. Ne5 {[%emt 0:00:38]} Kf8 {[%emt 0:04:41]} 34. Rb5 {[%emt 0:01:34]} Bxe5+ {[%emt 0:06:15]} 35. Rxe5 {[%emt 0:00:07]} Kg7 {[%emt 0:00:13]} 36. Kf3 {[%emt 0:00:37]} Kf6 {[%emt 0:00:52]} 37. Rc5 {[%emt 0:00:40]} Rd2 {[%emt 0:00:27]} 38. Rc4 {[%emt 0:00:20]} h5 {[%emt 0:00:46]} 39. e4 {[%emt 0:00:49]} Ke6 {[%emt 0:00:00]} 40. Ke3 Rd1 41. d5+ {[%emt 0:03:43]} Kd6 {[%emt 0:05:35]} 42. Rc6+ {[%emt 0:00:26]} Kd7 {[%emt 0:02:36]} 43. f3 {[%emt 0:01:09]} Kd8 {[%emt 0:01:45]} 44. Kf4 {[%emt 0:00:42]} Kd7 {[%emt 0:00:33]} 45. Ra6 {[%emt 0:01:33]} Kd8 {[%emt 0:04:55]} 46. Ke5 {[%emt 0:03:55]} Rd2 47. Kd6 {[%emt 0:00:22]} Kc8 {[%emt 0:05:12]} 1-0

[Event "EYCC Girls-U10 2019"]
[Site "Bratislava"]
[Date "2019.08.04"]
[Round "3.12"]
[White "Iudina, Veronika"]
[Black "Alieva, Mirayi"]
[Result "1-0"]
[ECO "C47"]
[WhiteElo "1357"]
[BlackElo "1029"]
[Annotator "NA"]
[PlyCount "65"]
[EventDate "2019.08.02"]
[EventType "swiss"]
[EventCountry "SVK"]
[SourceTitle "playchess.com"]
[Source "ChessBase"]
[SourceQuality "1"]
[TimeControl "40/5400+30:1800+30"]

1. e4 {[%emt 0:02:01]} e5 {[%emt 0:00:00]} 2. Nf3 {[%emt 0:00:58]} Nc6 {[%emt 0:00:00]} 3. Nc3 {[%emt 0:00:46]} Nf6 {[%emt 0:00:00]} 4. a3 {[%emt 0:01:23]} a6 {[%emt 0:00:22]} 5. d4 {[%emt 0:02:11]} exd4 {[%emt 0:01:59]} 6. Nxd4 {[%emt 0:00:46]} Nxd4 {[%emt 0:22:06]} 7. Qxd4 {[%emt 0:00:27]} d6 {[%emt 0:00:57]} 8. Be3 {[%emt 0:08:35]} c5 {[%emt 0:04:00]} 9. Qd2 {[%emt 0:02:45]} b5 {[%emt 0:04:34]} 10. f3 {[%emt 0:05:58]} Bb7 {[%emt 0:01:29]} 11. Rd1 {[%emt 0:02:27]} Qd7 {[%emt 0:06:49]} 12. Be2 {[%emt 0:05:59]} Be7 {[%emt 0:02:06]} 13. O-O {[%emt 0:04:05]} Rd8 {[%emt 0:00:36]} 14. Bg5 {[%emt 0:05:35]} h6 {[%emt 0:04:42]} 15. Bxf6 {[%emt 0:05:07]} Bxf6 {[%emt 0:00:34]} 16. Rfe1 {[%emt 0:05:48]} Bh4 {[%emt 0:07:30]} 17. g3 {[%emt 0:03:44]} Bf6 {[%emt 0:02:13]} 18. Bf1 {[%emt 0:01:45]} Bd4+ {[%emt 0:04:14]} 19. Kh1 {[%emt 0:01:43]} Bc6 {[%emt 0:05:33]} 20. Bg2 {[%emt 0:04:27]} h5 {[%emt 0:09:42]} 21. h3 {[%emt 0:05:04]} h4 {[%emt 0:09:25]} 22. g4 {[%emt 0:00:17]} Rh6 {[%emt 0:05:03]} 23. f4 {[%emt 0:00:59]} f6 {[%emt 0:04:29]} 24. b3 {[%emt 0:01:28]} a5 {[%emt 0:02:24]} 25. Nd5 {[%emt 0:00:07]} Bb2 {[%emt 0:00:52]} 26. Qxa5 {[%emt 0:00:12]} b4 {[%emt 0:00:31]} 27. axb4 {[%emt 0:00:13]} cxb4 {[%emt 0:00:08]} 28. Qxb4 {[%emt 0:00:27]} Ra8 {[%emt 0:00:29]} 29. Qb6 {[%emt 0:01:16]} Kf8 {[%emt 0:00:48]} 30. Nb4 {[%emt 0:00:23]} Bc3 {[%emt 0:00:49]} 31. Re3 {[%emt 0:00:04]} Bxb4 {[%emt 0:00:15]} 32. Qxb4 {[%emt 0:00:03]} Rd8 {[%emt 0:00:41]} 33. Red3 {[%emt 0:00:05]} 1-0

[Event "EYCC Girls-U10 2019"]
[Site "Bratislava"]
[Date "2019.08.05"]
[Round "4.1"]
[White "Seyhan, Pelin"]
[Black "Smietanska, Wiktoria"]
[Result "1/2-1/2"]
[ECO "B23"]
[WhiteElo "1333"]
[BlackElo "1547"]
[Annotator "NA"]
[PlyCount "124"]
[EventDate "2019.08.02"]
[EventType "swiss"]
[EventCountry "SVK"]
[SourceTitle "playchess.com"]
[Source "ChessBase"]
[SourceQuality "1"]
[TimeControl "40/5400+30:1800+30"]

1. e4 {[%emt 0:00:00]} c5 {[%emt 0:00:00]} 2. Nc3 {[%emt 0:00:00]} g6 {[%emt 0:00:06]} 3. g3 {[%emt 0:00:00]} Bg7 {[%emt 0:00:46]} 4. Bg2 {[%emt 0:00:00]} Nc6 {[%emt 0:01:41]} 5. d3 {[%emt 0:00:08]} e6 {[%emt 0:02:36]} 6. Be3 {[%emt 0:00:14]} d6 {[%emt 0:01:55]} 7. Qd2 {[%emt 0:00:18]} Nge7 {[%emt 0:03:07]} 8. Nf3 {[%emt 0:02:40]} e5 {[%emt 0:05:12]} 9. Bh6 {[%emt 0:00:25]} O-O {[%emt 0:01:48]} 10. h4 {[%emt 0:00:18]} Bg4 {[%emt 0:06:40]} 11. h5 {[%emt 0:05:03]} gxh5 {[%emt 0:11:55]} 12. Nh2 {[%emt 0:04:27]} Qd7 {[%emt 0:06:07]} 13. Qg5 {[%emt 0:17:10]} Ng6 {[%emt 0:01:19]} 14. Qe3 {[%emt 0:03:05]} Nd4 {[%emt 0:02:13]} 15. Kd2 {[%emt 0:00:57]} f6 {[%emt 0:09:18]} 16. Bxg7 {[%emt 0:07:53]} Kxg7 {[%emt 0:02:26]} 17. Nd5 {[%emt 0:03:19]} b5 {[%emt 0:09:07]} 18. c3 {[%emt 0:01:47]} Nc6 {[%emt 0:00:34]} 19. Bf3 {[%emt 0:01:21]} Rh8 {[%emt 0:07:32]} 20. Qe2 {[%emt 0:00:29]} f5 {[%emt 0:05:54]} 21. exf5 {[%emt 0:02:38]} Qxf5 {[%emt 0:01:13]} 22. Bxg4 {[%emt 0:00:57]} hxg4 {[%emt 0:00:15]} 23. Nxg4 {[%emt 0:01:17]} Raf8 {[%emt 0:01:50]} 24. Raf1 {[%emt 0:01:12]} Qf3 {[%emt 0:01:46]} 25. Qxf3 {[%emt 0:02:03]} Rxf3 {[%emt 0:00:08]} 26. Ke2 {[%emt 0:00:14]} Rf7 {[%emt 0:01:02]} 27. Rh5 {[%emt 0:01:42]} Nd8 {[%emt 0:02:23]} 28. Nge3 {[%emt 0:02:09]} Ne6 {[%emt 0:01:36]} 29. Rf5 {[%emt 0:03:16]} Rhf8 {[%emt 0:01:25]} 30. Rxf7+ {[%emt 0:03:30]} Rxf7 {[%emt 0:00:07]} 31. Rh1 {[%emt 0:00:26]} Kf8 {[%emt 0:02:47]} 32. Rh5 {[%emt 0:00:30]} Ke8 {[%emt 0:00:54]} 33. Nf5 {[%emt 0:01:14]} Kd7 {[%emt 0:00:27]} 34. Rxh7 {[%emt 0:03:06]} Rxh7 {[%emt 0:00:06]} 35. Nf6+ {[%emt 0:00:08]} Kd8 {[%emt 0:03:35]} 36. Nxh7 {[%emt 0:01:02]} Kd7 {[%emt 0:02:03]} 37. Nf6+ {[%emt 0:00:09]} Kc6 {[%emt 0:00:21]} 38. Ng8 {[%emt 0:00:35]} Kd7 {[%emt 0:00:44]} 39. Ngh6 {[%emt 0:00:23]} d5 {[%emt 0:00:48]} 40. Ng4 {[%emt 0:00:00]} c4 {[%emt 0:00:00]} 41. dxc4 {[%emt 0:03:05]} bxc4 {[%emt 0:01:18]} 42. Nfe3 {[%emt 0:01:43]} Kc6 {[%emt 0:00:38]} 43. Nc2 {[%emt 0:00:41]} d4 {[%emt 0:00:57]} 44. cxd4 {[%emt 0:00:17]} exd4 {[%emt 0:00:13]} 45. Kd2 {[%emt 0:00:09]} Kc5 {[%emt 0:00:28]} 46. f4 {[%emt 0:00:21]} Ne7 {[%emt 0:01:07]} 47. Ne5 {[%emt 0:00:47]} Kd5 {[%emt 0:02:00]} 48. Nf7 {[%emt 0:00:55]} a5 {[%emt 0:02:22]} 49. Ne1 {[%emt 0:00:56]} a4 {[%emt 0:03:05]} 50. Nf3 {[%emt 0:00:27]} a3 {[%emt 0:04:49]} 51. bxa3 {[%emt 0:00:56]} c3+ {[%emt 0:00:13]} 52. Kd3 {[%emt 0:00:28]} Nc5+ {[%emt 0:00:08]} 53. Kc2 {[%emt 0:00:26]} Nf5 {[%emt 0:00:46]} 54. N7e5 {[%emt 0:01:35]} Nxg3 {[%emt 0:02:38]} 55. Nd3 {[%emt 0:00:17]} Na4 {[%emt 0:01:54]} 56. Kb3 {[%emt 0:01:27]} Ke4 {[%emt 0:01:59]} 57. Nde5 {[%emt 0:03:19]} Nc5+ {[%emt 0:00:49]} 58. Kc2 {[%emt 0:00:28]} Nf5 {[%emt 0:01:21]} 59. Nxd4 {[%emt 0:01:21]} Kxd4 {[%emt 0:01:24]} 60. Nc6+ {[%emt 0:00:36]} Kc4 {[%emt 0:01:44]} 61. Ne5+ {[%emt 0:00:07]} Kd4 {[%emt 0:01:50]} 62. Nc6+ {[%emt 0:00:10]} Kc4 {[%emt 0:01:29]} 1/2-1/2

[Event "EYCC Girls-U10 2019"]
[Site "Bratislava"]
[Date "2019.08.05"]
[Round "4.2"]
[White "Kirtadze, Anastasia"]
[Black "Goriachkina, Oksana"]
[Result "1/2-1/2"]
[ECO "D45"]
[WhiteElo "1532"]
[BlackElo "1417"]
[Annotator "NA"]
[PlyCount "86"]
[EventDate "2019.08.02"]
[EventType "swiss"]
[EventCountry "SVK"]
[SourceTitle "playchess.com"]
[Source "ChessBase"]
[SourceQuality "1"]
[TimeControl "40/5400+30:1800+30"]

1. d4 {[%emt 0:00:00]} d5 {[%emt 0:00:00]} 2. c4 {[%emt 0:00:00]} c6 {[%emt 0:00:00]} 3. Nf3 {[%emt 0:00:00]} Nf6 {[%emt 0:00:07]} 4. e3 {[%emt 0:00:02]} e6 {[%emt 0:01:07]} 5. Nc3 {[%emt 0:00:18]} Be7 {[%emt 0:01:17]} 6. Bd3 {[%emt 0:00:16]} dxc4 {[%emt 0:00:06]} 7. Bxc4 {[%emt 0:00:08]} O-O {[%emt 0:00:24]} 8. O-O {[%emt 0:01:38]} Nbd7 {[%emt 0:01:12]} 9. e4 {[%emt 0:03:27]} b5 {[%emt 0:00:49]} 10. Bd3 {[%emt 0:00:25]} Nb6 {[%emt 0:04:21]} 11. e5 {[%emt 0:07:59]} Nfd5 {[%emt 0:00:30]} 12. Nxd5 {[%emt 0:00:08]} Nxd5 {[%emt 0:00:24]} 13. a3 {[%emt 0:00:33]} Bb7 {[%emt 0:00:47]} 14. Bd2 {[%emt 0:03:06]} a5 {[%emt 0:05:51]} 15. Qe2 {[%emt 0:04:00]} Qb6 {[%emt 0:04:22]} 16. Qe4 {[%emt 0:01:42]} g6 {[%emt 0:00:19]} 17. Bh6 {[%emt 0:00:51]} Rfd8 {[%emt 0:00:10]} 18. Bg5 {[%emt 0:09:43]} Rd7 {[%emt 0:08:26]} 19. h4 {[%emt 0:05:41]} Bxg5 {[%emt 0:06:39]} 20. hxg5 {[%emt 0:00:22]} Ne7 {[%emt 0:02:59]} 21. Qe2 {[%emt 0:03:56]} b4 {[%emt 0:11:02]} 22. Rac1 {[%emt 0:04:15]} Rc8 {[%emt 0:01:31]} 23. Be4 {[%emt 0:01:28]} Ba6 {[%emt 0:00:48]} 24. Bd3 {[%emt 0:00:06]} Bxd3 {[%emt 0:02:06]} 25. Qxd3 {[%emt 0:04:54]} Rcd8 {[%emt 0:03:45]} 26. Qc4 {[%emt 0:03:08]} Rd5 {[%emt 0:01:41]} 27. axb4 {[%emt 0:02:48]} axb4 {[%emt 0:03:19]} 28. Rfe1 {[%emt 0:05:09]} Rc8 {[%emt 0:00:26]} 29. Rcd1 c5 30. dxc5 {[%emt 0:00:53]} Rcxc5 {[%emt 0:00:59]} 31. Qb3 {[%emt 0:02:01]} Nc6 {[%emt 0:01:54]} 32. Rxd5 {[%emt 0:03:27]} Rxd5 {[%emt 0:00:02]} 33. Qc4 {[%emt 0:02:05]} Qc5 {[%emt 0:00:42]} 34. Qf4 {[%emt 0:00:41]} Qa5 {[%emt 0:05:49]} 35. Qe3 {[%emt 0:04:07]} Qd8 {[%emt 0:03:28]} 36. Qe4 {[%emt 0:02:00]} Qb6 {[%emt 0:01:47]} 37. Rc1 {[%emt 0:02:05]} Qb5 {[%emt 0:01:08]} 38. Qf4 {[%emt 0:01:26]} Rc5 {[%emt 0:02:21]} 39. Rd1 {[%emt 0:01:24]} Rd5 {[%emt 0:00:13]} 40. Rc1 {[%emt 0:00:00]} Rc5 {[%emt 0:00:00]} 41. Ra1 {[%emt 0:04:57]} Qb8 {[%emt 0:06:45]} 42. Re1 {[%emt 0:02:40]} Rd5 {[%emt 0:04:02]} 43. Qe4 {[%emt 0:06:53]} Qb5 {[%emt 0:05:35]} 1/2-1/2

[Event "EYCC Girls-U10 2019"]
[Site "Bratislava"]
[Date "2019.08.05"]
[Round "4.3"]
[White "Artissi, Sabina"]
[Black "Hnatyshyn, Anastasiia"]
[Result "0-1"]
[ECO "D37"]
[WhiteElo "1419"]
[BlackElo "1380"]
[Annotator "NA"]
[PlyCount "58"]
[EventDate "2019.08.02"]
[EventType "swiss"]
[EventCountry "SVK"]
[SourceTitle "playchess.com"]
[Source "ChessBase"]
[SourceQuality "1"]
[TimeControl "40/5400+30:1800+30"]

1. Nf3 {[%emt 0:00:00]} d5 {[%emt 0:00:00]} 2. d4 {[%emt 0:00:00]} Nf6 {[%emt 0:00:06]} 3. c4 {[%emt 0:00:00]} e6 {[%emt 0:00:04]} 4. Nc3 {[%emt 0:00:00]} Be7 {[%emt 0:01:08]} 5. Bf4 {[%emt 0:00:04]} O-O {[%emt 0:00:33]} 6. e3 {[%emt 0:00:05]} Nbd7 {[%emt 0:01:26]} 7. Bd3 {[%emt 0:00:33]} dxc4 {[%emt 0:00:20]} 8. Bxc4 {[%emt 0:00:13]} b6 {[%emt 0:00:49]} 9. O-O {[%emt 0:00:14]} Bb7 {[%emt 0:00:11]} 10. Rc1 {[%emt 0:02:11]} c5 {[%emt 0:00:45]} 11. Qc2 {[%emt 0:32:55]} Rc8 {[%emt 0:07:39]} 12. Bd3 {[%emt 0:05:36]} h6 {[%emt 0:00:41]} 13. Rfd1 {[%emt 0:01:52]} cxd4 {[%emt 0:00:23]} 14. exd4 {[%emt 0:00:42]} Bxf3 {[%emt 0:00:40]} 15. gxf3 {[%emt 0:00:20]} Nd5 {[%emt 0:00:11]} 16. Bd2 {[%emt 0:01:10]} Bd6 {[%emt 0:04:16]} 17. Ba6 {[%emt 0:11:39]} Rc7 {[%emt 0:05:05]} 18. Qe4 {[%emt 0:01:40]} N7f6 {[%emt 0:02:36]} 19. Qe1 {[%emt 0:07:42]} Nf4 {[%emt 0:04:57]} 20. Kh1 {[%emt 0:04:46]} N6h5 {[%emt 0:04:46]} 21. Qg1 {[%emt 0:07:21]} Qh4 {[%emt 0:00:55]} 22. Be3 {[%emt 0:05:53]} f5 {[%emt 0:04:01]} 23. d5 {[%emt 0:09:00]} Qh3 {[%emt 0:00:42]} 24. Qf1 {[%emt 0:01:43]} Qxf3+ {[%emt 0:00:06]} 25. Kg1 {[%emt 0:00:17]} Rf6 {[%emt 0:00:23]} 26. Bxf4 {[%emt 0:00:35]} Nxf4 {[%emt 0:00:11]} 27. Ne4 {[%emt 0:01:38]} fxe4 {[%emt 0:00:19]} 28. Rxc7 {[%emt 0:00:37]} Rg6+ {[%emt 0:00:05]} 29. Qg2 {[%emt 0:00:11]} Qxg2# {[%emt 0:00:03]} 0-1

[Event "EYCC Girls-U10 2019"]
[Site "Bratislava"]
[Date "2019.08.05"]
[Round "4.4"]
[White "Sidorenja, Milena"]
[Black "Kuznecova, Marija"]
[Result "1-0"]
[ECO "B07"]
[WhiteElo "1573"]
[BlackElo "1375"]
[Annotator "NA"]
[PlyCount "45"]
[EventDate "2019.08.02"]
[EventType "swiss"]
[EventCountry "SVK"]
[SourceTitle "playchess.com"]
[Source "ChessBase"]
[SourceQuality "1"]
[TimeControl "40/5400+30:1800+30"]

1. e4 {[%emt 0:00:00]} d6 {[%emt 0:00:00]} 2. d4 {[%emt 0:00:00]} Nf6 {[%emt 0:00:00]} 3. Nc3 {[%emt 0:00:00]} Nbd7 {[%emt 0:00:00]} 4. f4 {[%emt 0:00:44]} e5 {[%emt 0:00:00]} 5. Nf3 {[%emt 0:00:28]} exd4 {[%emt 0:00:08]} 6. Qxd4 {[%emt 0:00:08]} c6 {[%emt 0:00:33]} 7. Be2 {[%emt 0:11:35]} Be7 {[%emt 0:02:20]} 8. O-O {[%emt 0:22:26]} d5 {[%emt 0:01:34]} 9. Kh1 {[%emt 0:01:48]} Bc5 {[%emt 0:02:32]} 10. Qd3 {[%emt 0:01:00]} Nb6 {[%emt 0:10:12]} 11. e5 {[%emt 0:03:15]} Ng4 {[%emt 0:01:45]} 12. Nd4 {[%emt 0:00:28]} h5 {[%emt 0:01:53]} 13. Be3 {[%emt 0:15:14]} Nc4 {[%emt 0:05:48]} 14. Bg1 {[%emt 0:00:59]} Nxb2 {[%emt 0:03:28]} 15. Qd2 {[%emt 0:08:51]} Qa5 {[%emt 0:08:46]} 16. Nb3 {[%emt 0:00:23]} Be3 {[%emt 0:05:26]} 17. Bxe3 {[%emt 0:01:01]} Qc7 {[%emt 0:00:44]} 18. f5 {[%emt 0:05:21]} Qxe5 {[%emt 0:04:13]} 19. Bf4 {[%emt 0:00:07]} Qf6 {[%emt 0:07:30]} 20. Bxg4 {[%emt 0:02:23]} hxg4 {[%emt 0:03:18]} 21. Rae1+ {[%emt 0:00:24]} Kf8 {[%emt 0:00:46]} 22. Bg5 {[%emt 0:00:07]} Nc4 {[%emt 0:01:32]} 23. Qe2 {[%emt 0:00:43]} 1-0